fUST/lending_fUST_20240720
["ID","MTS","AMOUNT","RATE_DAILY","PERIOD"]
[332705891,1721464243591,-228.20082559,0.00016438,2]
[332705916,1721464577626,165.12867977,0.00014795,2]
[332705921,1721465168030,160.17909558,9.999e-05,2]
[332705922,1721465236097,-166.666666,0.00014795,2]
[332705923,1721465236122,-1781.70846783,0.00015052,2]
[332705924,1721465236149,-1534.42246837,0.00015052,2]
[332705925,1721465242428,-750.0,0.00015052,2]
[332705926,1721465246104,-29.8914119,0.00015052,2]
[332705927,1721465246125,-547.3958726,0.00015085,2]
[332705928,1721465246147,-174.069607,0.00015257,2]
[332705929,1721465246168,-244.34419505,0.00015707,2]
[332705930,1721465251096,-55.65580495,0.00015707,2]
[332705931,1721465251119,-1407.6534974,0.00015708,2]
[332705932,1721465265740,1592.0,0.00014002,2]
[332705995,1721465432749,-408.62137003,0.00015,2]
[332705997,1721465432759,-189.350736,0.0001535,2]
[332705999,1721465432768,-189.350736,0.00015617,2]
[332706001,1721465432778,-240.0,0.00015707,2]
[332706003,1721465432788,-3965.71354749,0.00015708,2]
[332706005,1721465432797,-357.71516318,0.00015708,2]
[332706085,1721465440792,-1726.9226899,0.00015708,2]
[332706086,1721465440801,-195.83024215,0.00015708,2]
[332706087,1721465440811,-385.858079,0.00015791,2]
[332706088,1721465440820,-168.004657,0.00015791,2]
[332706089,1721465440829,-287.472811,0.00015791,2]
[332706090,1721465440838,-189.350736,0.00015884,2]
[332706091,1721465440847,-206.5463282,0.0001589,2]
[332706092,1721465440856,-293.8031846,0.0001589,2]
[332706093,1721465440865,-153.0,0.0001589,2]
[332706094,1721465440875,-153.0,0.0001589,2]
[332706095,1721465440884,-153.0,0.0001589,2]
[332706096,1721465440893,-293.8031846,0.000159,2]
[332706097,1721465440903,-403.361962,0.000159,2]
[332706098,1721465440912,-1161.38988049,0.00015952,2]
[332706099,1721465440921,-385.858079,0.00015988,2]
[332706100,1721465440931,-168.004657,0.00015988,2]
[332706101,1721465440940,-287.472811,0.00015988,2]
[332706102,1721465440949,-189.350736,0.0001615,2]
[332706103,1721465440958,-5269.53014245,0.00016169,2]
[332706104,1721465440967,-385.858079,0.00016186,2]
[332706105,1721465440976,-168.004657,0.00016186,2]
[332706106,1721465440985,-287.472811,0.00016186,2]
[332706107,1721465440995,-1130.12770536,0.00016338,2]
[332706108,1721465441004,-1719.48089819,0.00016338,2]
[332706109,1721465441013,-150.60173835,0.00016377,2]
[332706110,1721465441023,-385.858079,0.00016383,2]
[332706111,1721465441032,-168.004657,0.00016383,2]
[332706112,1721465441042,-287.472811,0.00016383,2]
[332706113,1721465441051,-1237.00494227,0.00016422,3]
[332706114,1721465441061,-350.15804791,0.00016427,2]
[332706115,1721465441070,-942.66740511,0.00016428,2]
[332706116,1721465441079,-523.70411395,0.00016428,2]
[332706117,1721465441089,-457.2236718,0.00016437,2]
[332706118,1721465441098,-510.54538549,0.00016438,2]
[332706119,1721465441107,-425.669,0.00016438,2]
[332706120,1721465441120,-6481.90725189,0.00016438,2]
[332706193,1721466433168,-166.666666,0.00014795,2]
[332706194,1721466433190,-556.69225099,0.00014985,2]
[332706195,1721466437287,-11.72090471,0.00014985,2]
[332706196,1721466437309,-808.96672094,0.00015,2]
[332706197,1721466437332,-172.8894,0.00015189,2]
[332706198,1721466437355,-172.8894,0.00015302,2]
[332706199,1721466437377,-172.8894,0.00015415,2]
[332706200,1721466437401,-172.8894,0.00015528,2]
[332706201,1721466437423,-172.8894,0.00015641,2]
[332706202,1721466437446,-401.05517319,0.00015708,2]
[332706203,1721466442109,-500.0,0.00015708,2]
[332706204,1721466444090,-260.3347073,0.00015708,2]
[332706205,1721466444110,-159.59839614,0.0001571,2]
[332706206,1721466444132,-172.8894,0.00015754,2]
[332706207,1721466444153,-151.825823,0.00015791,2]
[332706208,1721466444175,-192.929039,0.00015791,2]
[332706209,1721466444196,-158.774847,0.00015791,2]
[332706210,1721466444217,-151.825823,0.00015791,2]
[332706211,1721466444238,-192.92904,0.00015791,2]
[332706212,1721466444259,-304.33645059,0.00015839,2]
[332706213,1721466446096,-534.18880511,0.00015839,2]
[332706214,1721466446118,-172.8894,0.00015868,2]
[332706215,1721466446140,-172.8894,0.00015981,2]
[332706216,1721466446161,-151.825823,0.00016186,2]
[332706217,1721466446181,-151.825823,0.00016186,2]
[332706218,1721466446202,-1620.09362971,0.00016215,2]
[332706219,1721466446231,-1120.64205357,0.00016215,2]
[332706270,1721466631925,-351.3578871,0.00016194,2]
[332706272,1721466631935,-1239.31355623,0.00016215,2]
[332706274,1721466631948,-2017.97847277,0.00016215,2]
[332706279,1721466631983,-4261.85199106,0.00016215,2]
[332706281,1721466631993,-1719.48089819,0.00016238,2]
[332706283,1721466632004,-300.0,0.00016251,2]
[332706285,1721466632014,-362.70431592,0.00016252,2]
[332706287,1721466632024,-362.7043159,0.00016274,2]
[332706289,1721466632033,-362.7043159,0.00016295,2]
[332706291,1721466632043,-362.7043159,0.00016317,2]
[332706293,1721466632052,-1383.26291635,0.00016328,2]
[332706295,1721466632062,-1910.85686722,0.00016335,2]
[332706297,1721466632072,-1130.12770536,0.00016338,2]
[332706299,1721466632082,-362.7043159,0.00016338,2]
[332706301,1721466632092,-20222.27995384,0.00016338,2]
[332706303,1721466632102,-88888.0,0.00016338,2]
[332706305,1721466632112,-150.60173835,0.00016361,2]
[332706307,1721466632122,-20748.9437452,0.00016428,2]
[332706309,1721466632132,-5533.0516654,0.00016428,2]
[332706311,1721466632142,-425.669,0.00016438,2]
[332706313,1721466632152,-510.54538549,0.00016438,2]
[332706315,1721466632162,-500.0,0.00016438,2]
[332706317,1721466632172,-500.0,0.00016438,2]
[332706319,1721466632182,-500.0,0.00016438,2]
[332706321,1721466632192,-500.0,0.00016438,2]
[332706323,1721466632202,-500.0,0.00016438,2]
[332706325,1721466632212,-500.0,0.00016438,2]
[332706327,1721466632222,-673.3,0.00016438,2]
[332706329,1721466632233,-555.4,0.00016438,2]
[332706331,1721466632242,-500.0,0.00016438,2]
[332706333,1721466632252,-500.0,0.00016438,2]
[332706335,1721466632262,-500.0,0.00016438,2]
[332706338,1721466632272,-930.49,0.00016438,2]
[332706340,1721466632281,-472.61691304,0.00016438,2]
[332706342,1721466632291,-1346.67,0.00016438,2]
[332706344,1721466632301,-640.94,0.00016438,2]
[332706346,1721466632311,-534.65442884,0.00016438,2]
[332706348,1721466632321,-959.54,0.00016438,2]
[332706350,1721466632331,-1021.44,0.00016438,2]
[332706352,1721466632341,-500.0,0.00016438,2]
[332706354,1721466632351,-500.0,0.00016438,2]
[332706356,1721466632361,-500.0,0.00016438,2]
[332706358,1721466632371,-500.0,0.00016438,2]
[332706360,1721466632381,-500.0,0.00016438,2]
[332706362,1721466632391,-500.0,0.00016438,2]
[332706364,1721466632401,-814.19,0.00016438,2]
[332706366,1721466632411,-500.0,0.00016438,2]
[332706368,1721466632421,-500.0,0.00016438,2]
[332706370,1721466632431,-530.03079394,0.00016438,2]
[332706372,1721466632442,-500.0,0.00016438,2]
[332706374,1721466632456,-639.04,0.00016438,2]
[332706376,1721466632467,-500.0,0.00016438,2]
[332706378,1721466632477,-606.54,0.00016438,2]
[332706379,1721466632487,-992.71,0.00016438,2]
[332706381,1721466632497,-500.0,0.00016438,2]
[332706383,1721466632509,-500.0,0.00016438,2]
[332706384,1721466632519,-500.0,0.00016438,2]
[332706385,1721466632529,-177.0123793,0.00016438,2]
[332706387,1721466632539,-263.67743305,0.00016438,2]
[332706389,1721466632551,-500.0,0.00016438,2]
[332706391,1721466632560,-701.26,0.00016438,2]
[332706393,1721466632570,-500.0,0.00016438,2]
[332706394,1721466632580,-502.21005415,0.00016438,2]
[332706396,1721466632594,-500.0,0.00016438,2]
[332706398,1721466632604,-510.95190078,0.00016438,2]
[332706400,1721466632614,-503.21278815,0.00016438,2]
[332706401,1721466632624,-500.0,0.00016438,2]
[332706403,1721466632635,-500.0,0.00016438,2]
[332706405,1721466632644,-892.53,0.00016438,2]
[332706407,1721466632654,-500.0,0.00016438,2]
[332706409,1721466632664,-500.0,0.00016438,2]
[332706411,1721466632675,-502.81565659,0.00016438,2]
[332706412,1721466632686,-500.0,0.00016438,2]
[332706414,1721466632696,-500.0,0.00016438,2]
[332706416,1721466632706,-458.59404829,0.00016438,2]
[332706418,1721466632716,-500.0,0.00016438,2]
[332706420,1721466632726,-854.48,0.00016438,2]
[332706422,1721466632736,-500.0,0.00016438,2]
[332706423,1721466632745,-500.0,0.00016438,2]
[332706424,1721466632755,-501.32670427,0.00016438,2]
[332706426,1721466632764,-500.0,0.00016438,2]
[332706428,1721466632774,-500.0,0.00016438,2]
[332706430,1721466632784,-500.0,0.00016438,2]
[332706432,1721466632793,-500.0,0.00016438,2]
[332706434,1721466632803,-500.0,0.00016438,2]
[332706436,1721466632817,-500.0,0.00016438,2]
[332706437,1721466632827,-500.0,0.00016438,2]
[332706439,1721466632837,-500.98459521,0.00016438,2]
[332706441,1721466632848,-500.0,0.00016438,2]
[332706443,1721466632858,-500.0,0.00016438,2]
[332706445,1721466632868,-500.0,0.00016438,2]
[332706447,1721466632878,-500.0,0.00016438,2]
[332706449,1721466632888,-500.0,0.00016438,2]
[332706450,1721466632899,-500.0,0.00016438,2]
[332706452,1721466632908,-415.65130153,0.00016438,2]
[332706453,1721466632919,-3345.01,0.00016438,2]
[332706455,1721466632928,-523.42,0.00016438,2]
[332706456,1721466632938,-502.8673748,0.00016438,2]
[332706458,1721466632949,-188.40701913,0.00016438,2]
[332706460,1721466632959,-1779.29,0.00016438,2]
[332706461,1721466632968,-527.58399324,0.00016438,2]
[332706463,1721466632978,-613.78,0.00016438,2]
[332706465,1721466632988,-646.75,0.00016438,2]
[332706467,1721466632999,-952.69,0.00016438,2]
[332706468,1721466633009,-939.49,0.00016438,2]
[332706469,1721466633018,-803.27,0.00016438,2]
[332706470,1721466633027,-165.668993,0.00016438,2]
[332706471,1721466633037,-165.668993,0.00016438,2]
[332706472,1721466633047,-165.668993,0.00016438,2]
[332706473,1721466633058,-165.668993,0.00016438,2]
[332706474,1721466633068,-165.668993,0.00016438,2]
[332706475,1721466633078,-165.668993,0.00016438,2]
[332706476,1721466633088,-165.668993,0.00016438,2]
[332706477,1721466633098,-1085.73,0.00016438,2]
[332706478,1721466633108,-165.668993,0.00016438,2]
[332706479,1721466633118,-165.668993,0.00016438,2]
[332706480,1721466633128,-165.668993,0.00016438,2]
[332706481,1721466633138,-401.02028102,0.00016438,2]
[332706482,1721466633148,-165.668993,0.00016438,2]
[332706483,1721466633165,-165.668993,0.00016438,2]
[332706484,1721466633175,-165.668993,0.00016438,2]
[332706485,1721466633185,-779.22,0.00016438,2]
[332706486,1721466633195,-165.668993,0.00016438,2]
[332706487,1721466633205,-165.668993,0.00016438,2]
[332706488,1721466633215,-165.668993,0.00016438,2]
[332706489,1721466633225,-3074.69,0.00016438,2]
[332706490,1721466633236,-165.668993,0.00016438,2]
[332706491,1721466633246,-165.668993,0.00016438,2]
[332706492,1721466633257,-500.0,0.00016438,2]
[332706493,1721466633268,-165.668993,0.00016438,2]
[332706494,1721466633279,-165.668985,0.00016438,2]
[332706495,1721466633290,-307.33878365,0.00016438,2]
[332706496,1721466633301,-1030.94,0.00016438,2]
[332706497,1721466633311,-500.0,0.00016438,2]
[332706498,1721466633322,-500.0,0.00016438,2]
[332706499,1721466633332,-500.0,0.00016438,2]
[332706500,1721466633343,-500.0,0.00016438,2]
[332706501,1721466633353,-582.12759626,0.00016438,2]
[332706502,1721466633364,-641.45,0.00016438,2]
[332706503,1721466633374,-500.0,0.00016438,2]
[332706504,1721466633385,-500.0,0.00016438,2]
[332706505,1721466633396,-372.13073557,0.00016438,2]
[332706506,1721466633406,-500.0,0.00016438,2]
[332706507,1721466633417,-687.74,0.00016438,2]
[332706508,1721466633427,-1227.73,0.00016438,2]
[332706509,1721466633436,-1095.15,0.00016438,2]
[332706510,1721466633449,-500.0,0.00016438,2]
[332706511,1721466633459,-500.0,0.00016438,2]
[332706512,1721466633471,-2240.18,0.00016438,2]
[332706513,1721466633482,-502.70524814,0.00016438,2]
[332706514,1721466633491,-500.0,0.00016438,2]
[332706515,1721466633501,-758.03,0.00016438,2]
[332706516,1721466633514,-500.0,0.00016438,2]
[332706517,1721466633525,-500.0,0.00016438,2]
[332706518,1721466633535,-500.0,0.00016438,2]
[332706519,1721466633545,-500.0,0.00016438,2]
[332706520,1721466633556,-506.2655569,0.00016438,2]
[332706521,1721466633568,-500.0,0.00016438,2]
[332706522,1721466633579,-500.0,0.00016438,2]
[332706523,1721466633591,-500.0,0.00016438,2]
[332706524,1721466633601,-500.0,0.00016438,2]
[332706525,1721466633611,-500.0,0.00016438,2]
[332706526,1721466633622,-500.0,0.00016438,2]
[332706527,1721466633632,-500.0,0.00016438,2]
[332706528,1721466633642,-500.0,0.00016438,2]
[332706529,1721466633653,-500.0,0.00016438,2]
[332706530,1721466633663,-500.0,0.00016438,2]
[332706531,1721466633673,-500.0,0.00016438,2]
[332706532,1721466633683,-500.0,0.00016438,2]
[332706533,1721466633692,-500.0,0.00016438,2]
[332706534,1721466633702,-500.0,0.00016438,2]
[332706535,1721466633712,-500.0,0.00016438,2]
[332706536,1721466633723,-500.0,0.00016438,2]
[332706537,1721466633733,-500.0,0.00016438,2]
[332706538,1721466633742,-500.0,0.00016438,2]
[332706539,1721466633752,-500.0,0.00016438,2]
[332706540,1721466633762,-211.42433015,0.00016438,2]
[332706541,1721466633772,-500.0,0.00016438,2]
[332706542,1721466633781,-460.45151269,0.00016438,2]
[332706543,1721466633792,-500.0,0.00016438,2]
[332706544,1721466633801,-500.0,0.00016438,2]
[332706545,1721466633812,-500.0,0.00016438,2]
[332706546,1721466633822,-650.29,0.00016438,2]
[332706547,1721466633832,-500.0,0.00016438,2]
[332706548,1721466633842,-500.0,0.00016438,2]
[332706549,1721466633852,-500.0,0.00016438,2]
[332706550,1721466633861,-4452.5,0.00016438,2]
[332706551,1721466633871,-616.94,0.00016438,2]
[332706552,1721466633881,-500.0,0.00016438,2]
[332706553,1721466633891,-503.14588813,0.00016438,2]
[332706554,1721466633900,-500.0,0.00016438,2]
[332706555,1721466633910,-586.79,0.00016438,2]
[332706556,1721466633920,-500.0,0.00016438,2]
[332706557,1721466633930,-502.20136358,0.00016438,2]
[332706558,1721466633941,-500.0,0.00016438,2]
[332706559,1721466633951,-500.0,0.00016438,2]
[332706560,1721466633960,-500.0,0.00016438,2]
[332706561,1721466633970,-1568.41,0.00016438,2]
[332706562,1721466633980,-582.74,0.00016438,2]
[332706563,1721466633990,-500.0,0.00016438,2]
[332706564,1721466633999,-500.0,0.00016438,2]
[332706565,1721466634009,-323.02370745,0.00016438,2]
[332706566,1721466634019,-500.0,0.00016438,2]
[332706567,1721466634029,-500.0,0.00016438,2]
[332706568,1721466634038,-500.0,0.00016438,2]
[332706569,1721466634049,-500.0,0.00016438,2]
[332706570,1721466634311,-500.0,0.00016438,2]
[332706571,1721466634321,-500.0,0.00016438,2]
[332706572,1721466634331,-500.0,0.00016438,2]
[332706573,1721466634341,-526.11070592,0.00016438,2]
[332706574,1721466634351,-500.0,0.00016438,2]
[332706575,1721466634360,-771.82,0.00016438,2]
[332706576,1721466634371,-197.63168581,0.00016438,2]
[332706577,1721466634380,-538.11,0.00016438,2]
[332706578,1721466634392,-500.0,0.00016438,2]
[332706579,1721466634402,-500.0,0.00016438,2]
[332706580,1721466634412,-500.0,0.00016438,2]
[332706581,1721466634424,-507.78318751,0.00016438,2]
[332706582,1721466634434,-541.8,0.00016438,2]
[332706583,1721466634444,-581.03,0.00016438,2]
[332706584,1721466634454,-610.54,0.00016438,2]
[332706585,1721466634463,-580.79,0.00016438,2]
[332706586,1721466634473,-500.0,0.00016438,2]
[332706587,1721466634483,-500.0,0.00016438,2]
[332706588,1721466634493,-520.81171839,0.00016438,2]
[332706589,1721466634503,-502.23902653,0.00016438,2]
[332706590,1721466634516,-928.23,0.00016438,2]
[332706591,1721466634526,-502.75085437,0.00016438,2]
[332706592,1721466634535,-500.0,0.00016438,2]
[332706593,1721466634546,-500.0,0.00016438,2]
[332706594,1721466634557,-1939.32,0.00016438,2]
[332706595,1721466634567,-1252.14,0.00016438,2]
[332706596,1721466634577,-500.0,0.00016438,2]
[332706597,1721466634587,-728.73,0.00016438,2]
[332706598,1721466634599,-1896.62,0.00016438,2]
[332706599,1721466634609,-500.0,0.00016438,2]
[332706600,1721466634619,-500.0,0.00016438,2]
[332706601,1721466634630,-500.0,0.00016438,2]
[332706602,1721466634641,-587.77,0.00016438,2]
[332706603,1721466634650,-500.0,0.00016438,2]
[332706604,1721466634660,-482.52024733,0.00016438,2]
[332706605,1721466634669,-500.0,0.00016438,2]
[332706606,1721466634679,-502.62244927,0.00016438,2]
[332706607,1721466634689,-501.12390469,0.00016438,2]
[332706608,1721466634699,-500.0,0.00016438,2]
[332706609,1721466634709,-500.0,0.00016438,2]
[332706610,1721466634719,-825.73,0.00016438,2]
[332706611,1721466634728,-501.72351457,0.00016438,2]
[332706612,1721466634738,-500.0,0.00016438,2]
[332706613,1721466634748,-1281.03,0.00016438,2]
[332706614,1721466634759,-500.0,0.00016438,2]
[332706615,1721466634769,-1847.6,0.00016438,2]
[332706616,1721466634779,-469.95270067,0.00016438,2]
[332706617,1721466634789,-500.0,0.00016438,2]
[332706618,1721466634799,-500.0,0.00016438,2]
[332706619,1721466634809,-500.0,0.00016438,2]
[332706620,1721466634819,-500.0,0.00016438,2]
[332706621,1721466634828,-632.24271543,0.00016438,2]
[332706622,1721466634837,-500.0,0.00016438,2]
[332706623,1721466634847,-918.1,0.00016438,2]
[332706624,1721466634857,-501.90667774,0.00016438,2]
[332706625,1721466634866,-2961.68,0.00016438,2]
[332706626,1721466634876,-500.0,0.00016438,2]
[332706627,1721466634886,-500.0,0.00016438,2]
[332706628,1721466634897,-500.0,0.00016438,2]
[332706629,1721466634908,-500.0,0.00016438,2]
[332706630,1721466634919,-165.40279002,0.00016438,2]
[332706631,1721466634929,-500.0,0.00016438,2]
[332706632,1721466634938,-1879.23,0.00016438,2]
[332706633,1721466634948,-500.0,0.00016438,2]
[332706634,1721466634957,-150.0,0.00016438,2]
[332706635,1721466634967,-571.45,0.00016438,2]
[332706636,1721466634977,-500.0,0.00016438,2]
[332706637,1721466634987,-500.0,0.00016438,2]
[332706638,1721466634997,-630.2,0.00016438,2]
[332706639,1721466635007,-251.10593559,0.00016438,2]
[332706640,1721466635017,-517.87667541,0.00016438,2]
[332706641,1721466635027,-500.0,0.00016438,2]
[332706642,1721466635037,-500.0,0.00016438,2]
[332706643,1721466635046,-548.05,0.00016438,2]
[332706644,1721466635056,-778.3,0.00016438,2]
[332706645,1721466635066,-778.83,0.00016438,2]
[332706646,1721466635077,-500.0,0.00016438,2]
[332706647,1721466635087,-500.0,0.00016438,2]
[332706648,1721466635096,-500.0,0.00016438,2]
[332706649,1721466635105,-500.0,0.00016438,2]
[332706650,1721466635114,-500.0,0.00016438,2]
[332706651,1721466635124,-503.73404404,0.00016438,2]
[332706652,1721466635135,-500.0,0.00016438,2]
[332706653,1721466635145,-500.0,0.00016438,2]
[332706654,1721466635155,-1526.5,0.00016438,2]
[332706655,1721466635166,-502.71174989,0.00016438,2]
[332706656,1721466635175,-500.0,0.00016438,2]
[332706657,1721466635185,-766.51,0.00016438,2]
[332706658,1721466635194,-500.0,0.00016438,2]
[332706659,1721466635204,-643.77653392,0.00016438,2]
[332706660,1721466635214,-2258.3,0.00016438,2]
[332706661,1721466635223,-512.41248913,0.00016438,2]
[332706662,1721466635234,-500.0,0.00016438,2]
[332706663,1721466635245,-500.0,0.00016438,2]
[332706664,1721466635255,-2197.1,0.00016438,2]
[332706665,1721466635264,-2522.04,0.00016438,2]
[332706666,1721466635275,-500.0,0.00016438,2]
[332706667,1721466635286,-505.61,0.00016438,2]
[332706668,1721466635296,-523.52725809,0.00016438,2]
[332706669,1721466635308,-500.0,0.00016438,2]
[332706670,1721466635318,-1424.29,0.00016438,2]
[332706671,1721466635329,-309.18495205,0.00016438,2]
[332706672,1721466635340,-537.57,0.00016438,2]
[332706673,1721466635349,-634.66,0.00016438,2]
[332706674,1721466635359,-500.0,0.00016438,2]
[332706675,1721466635369,-538.31663561,0.00016438,2]
[332706676,1721466635381,-500.0,0.00016438,2]
[332706677,1721466635390,-500.0,0.00016438,2]
[332706678,1721466635400,-4059.18,0.00016438,2]
[332706679,1721466635410,-1842.61,0.00016438,2]
[332706680,1721466635420,-500.0,0.00016438,2]
[332706681,1721466635430,-500.0,0.00016438,2]
[332706682,1721466635441,-745.22,0.00016438,2]
[332706683,1721466635451,-501.03829281,0.00016438,2]
[332706684,1721466635462,-500.0,0.00016438,2]
[332706685,1721466635472,-500.0,0.00016438,2]
[332706686,1721466635484,-500.0,0.00016438,2]
[332706687,1721466635496,-501.53988826,0.00016438,2]
[332706688,1721466635507,-500.0,0.00016438,2]
[332706689,1721466635520,-564.52,0.00016438,2]
[332706690,1721466635532,-504.48,0.00016438,2]
[332706691,1721466635542,-612.02126791,0.00016438,2]
[332706692,1721466635554,-503.19403666,0.00016438,2]
[332706693,1721466635564,-500.0,0.00016438,2]
[332706694,1721466635574,-822.77,0.00016438,2]
[332706695,1721466635586,-500.0,0.00016438,2]
[332706696,1721466635596,-500.0,0.00016438,2]
[332706697,1721466635605,-500.0,0.00016438,2]
[332706698,1721466635615,-1181.43,0.00016438,2]
[332706699,1721466635625,-500.0,0.00016438,2]
[332706700,1721466635634,-931.09,0.00016438,2]
[332706701,1721466635645,-2239.4,0.00016438,2]
[332706702,1721466635655,-500.0,0.00016438,2]
[332706703,1721466635664,-500.0,0.00016438,2]
[332706704,1721466635674,-1019.02,0.00016438,2]
[332706705,1721466635683,-500.0,0.00016438,2]
[332706706,1721466635694,-506.01830379,0.00016438,2]
[332706707,1721466635703,-500.0,0.00016438,2]
[332706708,1721466635716,-500.0,0.00016438,2]
[332706709,1721466635726,-500.0,0.00016438,2]
[332706710,1721466635736,-501.27116887,0.00016438,2]
[332706711,1721466635746,-500.0,0.00016438,2]
[332706712,1721466635758,-500.0,0.00016438,2]
[332706713,1721466635769,-1600.14,0.00016438,2]
[332706714,1721466635781,-887.35,0.00016438,2]
[332706715,1721466635790,-500.0,0.00016438,2]
[332706716,1721466635802,-812.80555429,0.00016438,2]
[332706773,1721466640112,-500.0,0.00016426,2]
[332706774,1721466640122,-205.0017548,0.00016426,2]
[332706775,1721466640131,-582.4854977,0.00016426,2]
[332706776,1721466640141,-219.64150885,0.00016426,2]
[332706777,1721466640150,-189.17280669,0.00016426,2]
[332706778,1721466640160,-500.0,0.00016426,2]
[332706779,1721466640169,-500.0,0.00016426,2]
[332706780,1721466640178,-324.07890601,0.00016426,2]
[332706781,1721466640188,-184.80444571,0.00016438,2]
[332706782,1721466640197,-646.2,0.00016438,2]
[332706783,1721466640206,-500.0,0.00016438,2]
[332706784,1721466640215,-500.0,0.00016438,2]
[332706785,1721466640225,-500.0,0.00016438,2]
[332706787,1721466640234,-2049.01,0.00016438,2]
[332706789,1721466640244,-500.0,0.00016438,2]
[332706790,1721466640254,-1211.8,0.00016438,2]
[332706791,1721466640263,-1282.96,0.00016438,2]
[332706793,1721466640272,-223.6,0.00016438,2]
[332706794,1721466640282,-500.0,0.00016438,2]
[332706796,1721466640291,-500.0,0.00016438,2]
[332706797,1721466640301,-1081.64,0.00016438,2]
[332706798,1721466640311,-3149.27,0.00016438,2]
[332706799,1721466640320,-1170.02,0.00016438,2]
[332706800,1721466640329,-500.0,0.00016438,2]
[332706801,1721466640339,-5177.74,0.00016438,2]
[332706802,1721466640348,-500.0,0.00016438,2]
[332706803,1721466640358,-636.54,0.00016438,2]
[332706804,1721466640368,-509.5502719,0.00016438,2]
[332706805,1721466640377,-500.0,0.00016438,2]
[332706806,1721466640387,-500.0,0.00016438,2]
[332706807,1721466640397,-500.0,0.00016438,2]
[332706808,1721466640407,-500.0,0.00016438,2]
[332706809,1721466640417,-500.0,0.00016438,2]
[332706810,1721466640426,-500.0,0.00016438,2]
[332706816,1721466640647,-748.51,0.00016438,2]
[332706817,1721466640656,-640.92616767,0.00016438,2]
[332706819,1721466640666,-777.51,0.00016438,2]
[332706820,1721466640675,-525.58,0.00016438,2]
[332706821,1721466640685,-708.23,0.00016438,2]
[332706822,1721466640695,-404.03518266,0.00016438,2]
[332706823,1721466640706,-500.0,0.00016438,2]
[332706824,1721466640717,-502.439997,0.00016438,2]
[332706825,1721466640727,-574.99,0.00016438,2]
[332706826,1721466640738,-3755.11,0.00016438,2]
[332706827,1721466640749,-151.0,0.00016438,2]
[332706828,1721466640760,-151.0,0.00016438,2]
[332706829,1721466640770,-500.0,0.00016438,2]
[332706830,1721466640780,-151.0,0.00016438,2]
[332706831,1721466640790,-151.0,0.00016438,2]
[332706832,1721466640801,-151.0,0.00016438,2]
[332706834,1721466640811,-172.328518,0.00016438,2]
[332706835,1721466640820,-796.79,0.00016438,2]
[332706836,1721466640830,-3534.2,0.00016438,2]
[332706837,1721466640839,-500.0,0.00016438,2]
[332706838,1721466640849,-658.06,0.00016438,2]
[332706839,1721466640858,-500.0,0.00016438,2]
[332706840,1721466640868,-627.31,0.00016438,2]
[332706841,1721466640878,-470.27925151,0.00016438,2]
[332706842,1721466640887,-500.0,0.00016438,2]
[332706843,1721466640897,-1659.89,0.00016438,2]
[332706844,1721466640909,-500.0,0.00016438,2]
[332706845,1721466640920,-2496.71,0.00016438,2]
[332706846,1721466640931,-1872.2,0.00016438,2]
[332706847,1721466640941,-500.0,0.00016438,2]